bitfinex/quotes_ETHUSD_20220213
["timestamp","ask_amount","ask_price","bid_price","bid_amount"]
[1644760258529,0.01190331,2940.2,2939.9,1.98988516]
[1644760258734,1.44672098,2940.1,2939.9,1.98988516]
[1644760259134,1.44672098,2940.1,2939.9,0.85029]
[1644760259536,0.02458337,2940.0,2939.8,2.00072]
[1644760260435,0.0354735,2940.0,2939.8,2.00072]
[1644760261537,0.02458337,2940.0,2939.8,2.00072]
[1644760261739,0.0354735,2940.0,2939.8,2.00072]
[1644760262579,0.02458337,2940.0,2939.8,2.00072]
[1644760262778,0.0354735,2940.0,2939.8,2.00072]
[1644760263783,0.02458337,2940.0,2939.8,2.00072]
[1644760264184,0.0354735,2940.0,2939.8,2.00072]
[1644760264386,0.0354735,2940.0,2939.8,6.30960231]
[1644760264589,0.0354735,2940.0,2939.8,3.30072]
[1644760264987,1.74126462,2940.4,2939.9,3.44912354]
[1644760265186,1.74126462,2940.4,2940.0,4.65]
[1644760265384,1.74126462,2940.4,2940.1,4.79996494]
[1644760265587,1.74126462,2940.4,2940.1,5.09996494]
[1644760265839,1.74126462,2940.4,2940.2,1.3]
[1644760266036,1.74126462,2940.4,2940.2,2.44996]
[1644760266432,1.75215405,2940.4,2940.2,3.30564451]
[1644760266631,1.75215405,2940.4,2940.3,0.17]
[1644760266832,1.75215405,2940.4,2940.3,3.45028146]
[1644760267434,1.74126462,2940.4,2940.3,3.45028146]
[1644760268434,0.01088934,2940.5,2940.4,4.6]
[1644760268639,0.17,2940.7,2940.4,4.56731134]
[1644760268834,0.01088934,2940.5,2940.4,5.86731134]
[1644760269981,0.17,2940.7,2940.5,0.85]
[1644760270180,0.17,2940.7,2940.5,1.15]
[1644760270380,0.17,2940.7,2940.6,1.70031]
[1644760271084,0.00385927,2941.1,2940.6,1.70031]
[1644760271288,0.01088271,2940.8,2940.6,1.70031]
[1644760271485,1.44642794,2940.7,2940.6,1.70031]
[1644760272384,0.01088271,2940.8,2940.6,1.70031]
[1644760272585,1.44642794,2940.7,2940.6,1.70031]
[1644760273427,1.44642794,2940.7,2940.6,2.00031]
[1644760274929,1.32945927,2941.2,2940.6,2.30031]
[1644760274930,0.01088271,2940.8,2940.6,2.30031]
[1644760275132,1.44642794,2940.7,2940.6,2.30031]
[1644760275331,0.01088271,2940.8,2940.6,2.30031]
[1644760275731,1.15945927,2941.2,2940.7,1.12483794]
[1644760275932,1.15945927,2941.2,2940.7,2.82466794]
[1644760275933,1.44635224,2941.1,2940.7,2.82466794]
[1644760276133,0.01088262,2940.8,2940.7,2.82466794]
[1644760276335,0.01088262,2940.8,2940.7,1.97475794]
[1644760276532,1.45722927,2940.8,2940.7,1.97475794]
[1644760276733,0.01088262,2940.8,2940.7,1.97475794]
[1644760276933,2.60580387,2941.2,2940.7,1.97475794]
[1644760277183,0.01088253,2940.9,2940.8,0.84993]
[1644760277384,1.45720362,2940.9,2940.8,0.84993]
[1644760278183,1.44632109,2940.9,2940.8,0.84993]
[1644760278383,1.44632109,2941.1,2940.8,1.69985]
[1644760278684,0.01088235,2941.0,2940.9,0.84992]
[1644760278887,1.45720344,2941.0,2940.9,0.84992]
[1644760279488,1.44632109,2941.0,2940.9,0.84992]
[1644760280936,1.45720327,2941.1,2940.9,0.84992]
[1644760281138,1.44632109,2941.0,2940.9,0.84992]
[1644760284436,0.01088218,2941.1,2940.9,0.84992]
[1644760284676,1.44632109,2941.0,2940.9,0.84992]
[1644760287082,1.39632109,2941.0,2940.9,0.84992]
[1644760287280,0.01088218,2941.1,2940.9,0.84992]
[1644760287882,0.00385927,2941.4,2941.0,0.84993]
[1644760288085,0.01088209,2941.1,2941.0,0.84993]
[1644760288349,0.01088209,2941.1,2941.0,4.44927624]
[1644760288533,0.04738111,2941.6,2941.1,5.24935]
[1644760288731,0.04738111,2941.6,2941.2,3.67596418]
[1644760288931,0.00385927,2941.6,2941.3,0.8497]
[1644760289132,0.00385927,2941.6,2941.4,0.84973]
[1644760289334,0.17,2941.7,2941.6,1.07029286]
[1644760289736,0.17,2941.7,2941.6,1.37029286]
[1644760290636,0.00571198,2941.8,2941.2,1.69981]
[1644760290838,0.00571198,2941.8,2940.8,1.1642]
[1644760290839,0.00386569,2941.6,2940.8,1.1642]
[1644760291037,0.1698,2941.7,2940.8,1.1642]
[1644760291237,0.00386569,2941.6,2940.8,1.1642]
[1644760291639,0.85389569,2941.6,2940.8,1.1642]
[1644760291938,0.00571198,2941.4,2941.0,0.86046019]
[1644760292376,0.00571198,2941.4,2941.0,1.69992]
[1644760292777,3.25653528,2941.4,2941.0,1.69992]
[1644760292978,0.01087563,2941.3,2941.0,1.69992]
[1644760293778,3.25653528,2941.4,2941.0,1.69992]
[1644760294280,0.01087572,2941.3,2941.0,1.69992]
[1644760295078,0.00386569,2941.4,2941.0,1.69992]
[1644760295282,0.01087572,2941.3,2941.0,1.69992]
[1644760296333,0.00386569,2941.4,2941.0,1.69992]
[1644760296535,0.01087572,2941.3,2941.0,1.69992]
[1644760297434,0.00386569,2941.4,2941.0,1.69992]
[1644760297835,0.01087572,2941.3,2941.0,1.69992]
[1644760298637,0.00386569,2941.4,2941.0,1.69992]
[1644760299037,0.01087572,2941.3,2941.0,1.69992]
[1644760299983,0.85388569,2941.4,2941.0,1.69992]
[1644760300179,0.01087572,2941.3,2941.0,1.69992]
[1644760300781,3.09065406,2941.3,2940.9,0.8501]
[1644760300984,3.09065406,2941.3,2940.4,0.25]
[1644760300985,1.0626,2941.3,2940.4,0.25]
[1644760301183,1.0626,2941.3,2940.0,4.73994]
[1644760301184,4.55514057,2941.2,2940.0,4.73994]
[1644760301383,5.77161638,2941.2,2940.3,0.01087927]
[1644760301582,0.98281197,2940.8,2940.3,0.01087927]
[1644760301985,0.98281197,2940.8,2940.4,0.8502]
[1644760302384,0.85015,2940.9,2940.4,0.8502]
[1644760302985,1.21647484,2941.2,2940.4,0.8502]
[1644760303438,1.21647484,2941.2,2941.1,1.95393116]
[1644760303439,1.2056,2941.2,2941.1,1.95393116]
[1644760303636,0.00386569,2941.4,2941.1,1.95393116]
[1644760303837,0.01087523,2941.2,2941.1,1.95393116]
[1644760304639,0.00386569,2941.6,2941.1,1.95393116]
[1644760305038,0.00386569,2941.6,2941.2,1.69967]
[1644760305039,0.01087572,2941.3,2941.2,1.69967]
[1644760305939,0.00386569,2941.6,2941.2,1.69967]
[1644760306137,0.01087554,2941.4,2941.2,1.69967]
[1644760307181,1.4461598,2941.3,2941.2,1.69967]
[1644760307382,0.01087546,2941.4,2941.2,2.74525051]
[1644760307680,1.4461598,2941.3,2941.2,2.74525051]
[1644760309785,1.4461598,2941.3,2941.2,6.34749167]
[1644760309984,0.01087554,2941.4,2941.2,6.34749167]
[1644760310186,0.00928226,2941.4,2941.3,0.8498]
[1644760310387,1.4553249,2941.4,2941.3,0.8498]
[1644760310834,1.44604264,2941.4,2941.3,0.8498]
[1644760311230,1.44604264,2941.6,2941.3,1.69961]
[1644760311431,1.44990833,2941.5,2941.4,1.69961]
[1644760311639,1.44604264,2941.5,2941.4,1.69961]
[1644760312332,1.44604264,2941.5,2941.4,2.54938]
[1644760312531,1.44604264,2941.6,2941.4,1.69961]
[1644760312731,1.44604264,2941.5,2941.4,1.69961]
[1644760315776,1.45691783,2941.6,2941.4,1.69961]
[1644760315979,1.44604264,2941.5,2941.4,1.69961]
[1644760316979,0.01087519,2941.6,2941.4,1.69961]
[1644760317181,1.44604264,2941.5,2941.4,1.69961]
[1644760318186,0.01087519,2941.6,2941.4,1.69961]
[1644760318428,1.44604264,2941.5,2941.4,1.69961]
[1644760318727,1.44604264,2941.5,2941.4,1.99961]
[1644760318928,1.44604264,2941.5,2941.4,1.69961]
[1644760319126,1.44604264,2941.5,2941.4,1.99961]
[1644760320628,0.01025154,2941.6,2941.4,1.99961]
[1644760320833,1.44604264,2941.5,2941.4,2.84938]
[1644760321033,1.44604264,2941.5,2941.4,2.29961]
[1644760321234,0.01025154,2941.6,2941.4,5.72566228]
[1644760321434,0.00386569,2941.9,2941.5,3.27042079]
[1644760321634,1.44591713,2941.8,2941.5,5.9519643]
[1644760321834,0.01025147,2941.6,2941.5,7.1016943]
[1644760322078,0.01025147,2941.6,2941.5,6.5519643]
[1644760322677,0.00386569,2942.1,2941.7,0.84967]
[1644760322878,1.44586505,2942.0,2941.8,1.98808947]
[1644760323881,1.44586505,2942.0,2941.8,0.84969]
[1644760324278,1.45615799,2942.0,2941.8,0.84969]
[1644760324477,1.44586505,2941.9,2941.8,0.84969]
[1644760325279,1.44586505,2941.9,2941.7,1.30670997]
[1644760325280,0.19278839,2941.8,2941.7,1.30670997]
[1644760326136,1.63865344,2941.8,2941.7,1.30670997]
[1644760326731,1.63865344,2941.8,2941.7,1.60670997]
[1644760326932,1.63865344,2941.8,2941.7,2.85880997]
[1644760327136,0.19278839,2941.8,2941.7,2.85880997]
[1644760327331,0.19278839,2941.8,2941.7,3.15880997]
[1644760328333,0.19278839,2941.8,2941.7,2.15880997]
[1644760328931,0.19278839,2941.8,2941.7,3.15880997]
[1644760329133,0.19278839,2941.8,2941.7,5.47695842]
[1644760329432,0.19278839,2941.8,2941.7,6.47695842]
[1644760329879,0.19278839,2941.8,2941.7,3.15880997]
[1644760330279,0.01029032,2941.9,2941.7,4.00849997]
[1644760330682,0.01029032,2941.9,2941.8,1.0]
[1644760330881,0.01029032,2941.9,2941.8,1.84968]
[1644760331182,0.19665408,2942.5,2942.1,1.03568173]
[1644760331385,0.19278839,2942.3,2942.1,2.73497173]
[1644760331582,1.63856707,2942.2,2942.1,3.03497173]
[1644760332081,1.63856707,2942.2,2942.1,1.99929]
[1644760333334,1.63856707,2942.2,2942.1,2.29929]
[1644760333733,1.63856707,2942.2,2942.1,3.29929]
[1644760334132,1.65433667,2942.2,2942.1,3.29929]
[1644760335433,1.65433667,2942.2,2942.1,1.99929]
[1644760336936,1.65433667,2942.2,2942.1,1.69929]
[1644760337184,1.65433667,2942.2,2941.7,0.4219]
[1644760337381,0.19278839,2942.0,2941.7,0.5521]
[1644760337580,0.19278839,2941.8,2941.7,0.8521]
[1644760337782,0.0157696,2942.2,2941.7,0.5521]
[1644760337981,0.19278839,2942.0,2941.8,0.3]
[1644760338183,1.63868913,2941.9,2941.8,0.3]
[1644760338783,1.63868913,2941.9,2941.7,2.29964]
[1644760339087,0.19665408,2941.9,2941.7,2.29964]
[1644760339284,0.21242368,2941.9,2941.7,2.29964]
[1644760339684,1.63871008,2941.8,2941.7,2.29964]
[1644760339884,0.19278839,2941.8,2941.7,2.29964]
[1644760340285,0.20855799,2941.8,2941.7,2.29964]
[1644760340832,0.20855799,2941.8,2941.7,3.14939]
[1644760342743,0.0157696,2941.8,2941.7,3.14939]
[1644760342938,0.0157696,2941.8,2941.7,6.49908928]
[1644760343338,0.0157696,2941.8,2941.7,3.14939]
[1644760343739,0.0157696,2941.8,2941.7,4.14939]
[1644760346494,0.0157696,2941.8,2941.7,7.44309376]
[1644760348336,0.01029049,2941.9,2941.8,2.65]
[1644760348533,0.01029049,2941.9,2941.8,4.79814299]
[1644760348731,0.01029049,2941.9,2941.8,5.79814299]
[1644760349233,0.19665408,2942.5,2942.4,1.1699206]
[1644760349438,1.64230554,2942.5,2942.4,1.1699206]
[1644760349634,1.63843985,2942.5,2942.4,2.6194506]
[1644760353182,1.58843985,2942.5,2942.4,2.6194506]
[1644760353583,1.58843985,2942.5,2942.4,1.14953]
[1644760355185,1.58843985,2942.5,2942.4,1.44953]
[1644760358335,1.58843985,2942.5,2942.4,1.14953]
[1644760358541,1.58843985,2942.5,2942.4,1.44953]
[1644760358749,1.58843985,2942.5,2942.4,1.14953]
[1644760358939,1.58843985,2942.5,2942.4,1.44953]
[1644760359140,1.58843985,2942.5,2942.4,1.14953]
[1644760359885,1.58843985,2942.5,2942.4,1.44953]
[1644760362689,1.5884057,2942.5,2942.4,1.44953]
[1644760363090,1.5884057,2942.5,2942.4,2.44953]
[1644760363334,1.5884057,2942.5,2942.4,1.44953]
[1644760363533,1.5884057,2942.5,2942.4,2.44953]
[1644760365635,1.5884057,2942.5,2942.4,1.44953]
[1644760367481,1.5884057,2942.5,2942.4,2.44953]
[1644760368683,1.5884057,2942.5,2942.4,5.7300748]
[1644760368887,1.5884057,2942.5,2942.4,2.44953]
[1644760371037,1.5884057,2942.5,2942.4,6.0305092]
[1644760374984,0.23558116,2942.5,2942.4,6.0305092]
[1644760375183,0.01028933,2942.6,2942.5,0.84935]
[1644760375386,0.01028933,2942.6,2942.5,4.56228706]
[1644760375585,0.14665408,2943.0,2942.5,4.56228706]
[1644760375782,0.01028918,2942.7,2942.6,1.3]
[1644760375988,0.01028918,2942.7,2942.6,5.81243559]
[1644760376187,0.01028918,2942.7,2942.6,6.11243559]
[1644760376787,0.14665408,2943.0,2942.6,6.11243559]
[1644760376987,0.14665408,2943.0,2942.7,0.84943]
[1644760376988,0.01028902,2942.8,2942.7,0.84943]
[1644760377188,0.01028902,2942.8,2942.7,1.14943]
[1644760377996,0.14665408,2943.0,2942.7,1.14943]
[1644760378189,0.01028886,2942.9,2942.8,0.84943]
[1644760378843,0.01028886,2942.9,2942.7,0.15699773]
[1644760379042,0.01415455,2942.9,2942.7,0.15699773]
[1644760379342,0.01415446,2942.9,2942.7,0.15699773]
[1644760379742,0.01415446,2942.9,2942.8,0.84943]
[1644760379943,0.01028877,2942.9,2942.8,0.84943]
[1644760380141,0.01028877,2942.9,2942.8,1.14943]
[1644760380341,0.14665408,2943.2,2942.8,0.84943]
[1644760380547,0.01028869,2943.0,2942.8,1.14943]
[1644760380744,0.01028869,2943.0,2942.8,1.44943]
[1644760380948,0.01028869,2943.0,2942.9,0.84946]
[1644760381548,0.14665408,2943.2,2942.9,0.84946]
[1644760381946,0.01028854,2943.1,2942.9,0.84946]
[1644760382384,0.78911152,2943.2,2942.9,0.84946]
[1644760382385,0.75326575,2943.2,2943.0,0.84942]
[1644760382586,0.00387282,2943.1,2943.0,0.84942]
[1644760382786,0.75326575,2943.2,2943.0,0.84942]
[1644760385093,0.75326575,2943.1,2943.0,0.84942]
[1644760385493,0.75326575,2943.1,2943.0,1.14942]
[1644760385494,0.10694262,2943.1,2943.0,1.14942]
[1644760387145,0.75326575,2943.1,2943.0,1.14942]
[1644760388046,0.11781482,2943.2,2943.0,1.14942]
[1644760388249,0.11781482,2943.2,2943.1,1.14937]
[1644760388744,0.10694262,2943.2,2943.1,1.14937]
[1644760389344,0.10694262,2943.2,2943.1,1.99256482]
[1644760393090,0.12168764,2943.3,2943.1,1.99256482]
[1644760393337,0.12168764,2943.3,2943.2,0.84931]
[1644760393535,0.10694262,2943.3,2943.2,0.84931]
[1644760393734,0.75578035,2943.3,2943.2,0.84931]
[1644760393937,0.76665247,2943.3,2943.2,0.84931]
[1644760394534,0.11781474,2943.3,2943.2,0.84931]
[1644760394836,0.75578035,2943.3,2943.2,0.84931]
[1644760395033,2.20122467,2943.3,2943.2,0.84931]
[1644760396438,1.55238694,2943.3,2943.2,0.84931]
[1644760396639,2.20122467,2943.3,2943.2,0.84931]
[1644760397388,1.55238694,2943.3,2943.2,0.84931]
[1644760398890,3.05694262,2943.2,2943.1,0.45689144]
[1644760399091,1.55238694,2943.2,2943.1,0.45689144]
[1644760400390,1.55238694,2943.2,2943.1,0.75689144]
[1644760402039,1.55238694,2943.2,2943.1,1.75689144]
[1644760402742,1.55238694,2943.2,2943.1,5.36792735]
[1644760402938,1.55238694,2943.2,2943.1,1.75689144]
[1644760403340,1.55238694,2943.2,2943.1,1.92669144]
[1644760403742,1.55238694,2943.2,2943.1,1.75689144]
[1644760405893,1.55238694,2943.2,2943.1,1.92898273]
[1644760406897,1.55238694,2943.2,2943.1,2.09878273]
[1644760407295,1.55238694,2943.2,2943.1,1.92669144]
[1644760407494,1.55238694,2943.2,2943.1,1.75689144]
[1644760415189,1.55238694,2943.2,2943.1,1.92898273]
[1644760419252,0.80694262,2943.2,2943.1,1.92898273]
[1644760419686,2.25211971,2943.2,2943.1,1.92898273]
[1644760420489,2.25211971,2943.2,2943.1,1.75689144]
[1644760423340,2.20211971,2943.2,2943.1,1.75689144]
[1644760428592,2.20211971,2943.2,2943.1,0.75689144]
[1644760428994,5.3080277,2943.2,2943.1,0.75689144]
[1644760429191,2.20211971,2943.2,2943.1,0.75689144]
[1644760429392,0.10694262,2943.1,2943.0,1.51393132]
[1644760429600,1.55211971,2943.1,2943.0,1.51393132]
[1644760431339,1.55211971,2943.1,2943.0,1.81393132]
[1644760433544,4.54799467,2943.1,2943.0,1.81393132]
[1644760433744,1.55211971,2943.1,2943.0,1.81393132]
[1644760433944,4.55612757,2943.1,2943.0,1.81393132]
[1644760434143,1.55211971,2943.1,2943.0,1.81393132]
[1644760434342,4.56436275,2943.1,2943.0,1.81393132]
[1644760434586,1.55211971,2943.1,2943.0,1.81393132]
[1644760436791,1.55211971,2943.1,2943.0,1.21393132]
[1644760439836,1.55211971,2943.1,2943.0,1.51393132]
[1644760441640,1.55211971,2943.1,2943.0,1.21393132]
[1644760443890,1.55211971,2943.1,2943.0,1.51393132]
[1644760444090,1.55211971,2943.1,2943.0,2.38052555]
[1644760444691,1.55211971,2943.1,2943.0,1.51393132]
[1644760454344,1.55121546,2943.1,2943.0,1.51393132]
[1644760454946,1.55121546,2943.1,2943.0,2.46523907]
[1644760455445,1.55121546,2943.1,2943.0,1.51393132]
[1644760458490,0.10603837,2943.1,2943.0,1.51393132]
[1644760462340,1.55123951,2943.1,2943.0,1.51393132]
[1644760464586,2.50451383,2943.1,2943.0,1.51393132]
[1644760468440,1.55123951,2943.1,2943.0,1.51393132]
[1644760469643,2.40962822,2943.1,2943.0,1.21393132]
[1644760469942,2.40962822,2943.1,2942.2,0.25]
[1644760470143,0.10603837,2942.9,2942.2,0.25]
[1644760470341,0.10603837,2942.7,2942.0,0.1698]
[1644760470543,0.10603837,2942.9,2942.0,0.1698]
[1644760470741,0.10603837,2942.9,2941.9,0.18008155]
[1644760470946,0.10603837,2942.9,2942.4,0.84969]
[1644760471150,0.10603837,2942.7,2942.4,0.84969]
[1644760471347,0.10603837,2942.5,2942.4,0.84969]
[1644760471644,1.55147702,2942.5,2942.4,0.84969]
[1644760472093,1.55147702,2942.5,2941.9,0.0102785]
[1644760472296,0.10603837,2942.0,2941.9,0.0102785]
[1644760472894,0.10603837,2942.0,2941.6,0.00338633]
[1644760473093,0.10603837,2942.0,2941.8,0.86013805]
[1644760474095,0.10603837,2942.0,2941.8,0.84986]
[1644760474295,0.10603837,2942.0,2941.8,0.86013814]
[1644760475295,0.10603837,2942.0,2941.8,0.84986]
[1644760475501,0.10603837,2942.1,2941.8,0.84986]
[1644760475696,0.10603837,2942.1,2941.8,0.86013841]
[1644760475955,0.10603837,2942.1,2941.8,1.75669129]
[1644760476557,0.10603837,2942.1,2941.8,1.74641288]
[1644760476756,0.10603837,2942.1,2941.9,4.11397333]
[1644760476959,0.10603837,2942.1,2942.0,3.29480558]
[1644760477157,0.10603837,2942.1,2942.0,7.01322558]
[1644760477356,0.10603837,2942.1,2942.0,7.31322558]
[1644760477960,0.10448588,2942.1,2942.0,7.31322558]
[1644760480493,0.10448588,2943.0,2942.5,1.01111332]
[1644760480694,6.53260343,2943.2,2942.5,1.01111332]
[1644760480695,0.10448588,2942.8,2942.5,1.01111332]
[1644760481507,5.6728,2943.2,2942.5,1.01111332]
[1644760481508,0.10448588,2942.6,2942.5,1.01111332]
[1644760481698,1.54994342,2942.6,2942.5,3.55968332]
[1644760482299,1.54994342,2942.6,2942.5,5.15968332]
[1644760482300,0.10448588,2942.6,2942.5,5.15968332]
[1644760482503,0.10448588,2942.6,2942.5,8.61247937]
[1644760482700,0.10448588,2942.6,2942.5,5.15968332]
[1644760483444,0.10448588,2942.6,2942.5,5.32948332]
[1644760484546,0.10448588,2942.6,2942.5,5.15968332]
[1644760485547,0.10448588,2943.1,2942.7,0.84943]
[1644760485749,0.10448588,2942.9,2942.7,1.44943]
[1644760485951,0.10448588,2942.9,2942.7,2.44943]
[1644760486547,0.10448588,2942.9,2942.8,3.3390432]
[1644760486947,0.10448588,2942.9,2942.8,4.3390432]
[1644760487392,0.10448588,2942.9,2942.8,3.3390432]
[1644760487791,0.10448588,2942.9,2942.8,1.0]
[1644760487991,0.10448588,2942.9,2942.8,4.28069338]
[1644760488192,0.10448588,2942.9,2942.8,3.28069338]
[1644760488394,0.10448588,2942.9,2942.8,1.0]
[1644760488793,0.10448588,2942.9,2942.7,2.61923]
[1644760490093,0.10448588,2942.9,2942.7,2.44943]
[1644760490496,0.10448588,2943.1,2942.7,2.44943]
[1644760490695,0.10448588,2943.1,2942.8,0.84942]
[1644760490942,0.10448588,2943.1,2942.8,1.84942]
[1644760491342,0.10448588,2942.9,2942.8,1.84942]
[1644760491742,0.10448588,2942.9,2942.8,0.84942]
[1644760491945,0.10448588,2942.9,2942.8,1.84942]
[1644760492445,0.10448588,2942.9,2942.8,0.84942]
[1644760492641,0.10448588,2942.9,2942.8,1.84942]
[1644760492844,0.10448588,2942.9,2942.8,0.84942]
[1644760493246,0.10448588,2942.9,2942.8,1.84942]
[1644760493545,0.10448588,2942.9,2942.8,1.14942]
[1644760494044,0.10448588,2942.9,2942.8,0.84942]
[1644760494899,1.54982973,2942.9,2942.8,0.84942]
[1644760496601,1.44534385,2942.9,2942.8,0.84942]
[1644760497105,1.44534385,2942.9,2942.4,0.1698]
[1644760497601,5.25593987,2942.9,2942.4,0.1698]
[1644760497800,2.29504385,2942.8,2942.4,0.1698]
[1644760498000,1.44534385,2942.7,2942.4,0.1698]
[1644760498200,1.12560549,2942.5,2942.4,0.1698]
[1644760498445,2.57094934,2942.5,2942.0,0.00338633]
[1644760498642,1.12560549,2942.5,2942.0,0.00338633]
[1644760499042,1.12560549,2942.5,2942.1,0.84975]
[1644760499242,1.12560549,2942.5,2942.1,1.14975]
[1644760499648,0.84975,2942.4,2942.1,1.14975]
[1644760500544,0.84975,2942.4,2942.1,1.15313633]
[1644760501146,0.84975,2942.4,2942.1,0.85313633]
[1644760503404,1.12560549,2942.5,2942.1,0.85313633]
[1644760503804,1.44560817,2942.4,2942.1,0.85313633]
[1644760504505,1.44560817,2942.4,2942.2,0.02457524]
[1644760504905,2.29535817,2942.4,2942.2,0.02457524]
[1644760505104,1.44560817,2942.3,2942.2,0.87432524]
[1644760505944,1.44560817,2942.4,2942.2,0.87432524]
[1644760506146,1.44560817,2942.3,2942.2,0.87432524]
[1644760506545,1.86924,2942.8,2942.2,0.87432524]
[1644760506546,1.44560817,2942.4,2942.2,0.87771157]
[1644760506745,1.44560817,2942.3,2942.2,0.87771157]
[1644760506944,1.44560817,2942.3,2942.2,0.87432524]
[1644760507348,0.1698,2942.8,2942.3,0.84965]
[1644760507547,2.40540771,2942.7,2942.3,0.84965]
[1644760507746,1.44561789,2942.6,2942.3,0.84965]
[1644760508146,2.29530789,2942.6,2942.3,0.84965]
[1644760508483,1.44561789,2942.5,2942.3,0.84965]
[1644760508546,1.44561789,2942.5,2942.2,0.02796157]
[1644760508745,1.44561789,2942.4,2942.2,0.02457524]
[1644760508946,1.44561789,2942.3,2942.2,0.02457524]
[1644760509145,1.44561789,2942.6,2942.2,0.02457524]
[1644760510102,1.4456381,2942.5,2942.3,0.84971]
[1644760510296,1.4456381,2942.4,2942.3,0.84971]
[1644760510504,1.4456381,2942.6,2942.3,0.84971]
[1644760510900,1.4456381,2942.5,2942.3,0.84971]
[1644760511100,1.4456381,2942.4,2942.3,0.84971]
[1644760511306,1.4456381,2942.6,2942.3,0.84971]
[1644760511901,1.4456381,2942.5,2942.3,0.84971]
[1644760512102,1.01944,2942.8,2942.3,0.84971]
[1644760512303,1.4455566,2942.7,2942.3,0.84971]
[1644760512708,1.4455566,2942.7,2942.3,1.96414028]
[1644760513849,1.4455566,2942.6,2942.3,1.96414028]
[1644760514046,1.4455566,2942.5,2942.3,1.96414028]
[1644760514248,1.4455566,2942.4,2942.3,1.96414028]
[1644760514449,0.65,2942.9,2942.3,1.96414028]
[1644760514648,1.44554226,2942.8,2942.3,1.96414028]
[1644760514849,2.29513226,2942.8,2942.3,1.96414028]
[1644760515048,1.44554226,2942.7,2942.3,1.96414028]
[1644760515451,1.44554226,2942.6,2942.3,1.96414028]
[1644760515649,1.44554226,2942.8,2942.3,1.96414028]
[1644760516254,2.29513226,2942.8,2942.3,1.96414028]
[1644760516456,1.44554226,2942.7,2942.3,1.96414028]
[1644760516654,1.44554226,2942.7,2942.3,0.84971]
[1644760516854,1.44554226,2942.6,2942.3,0.84971]
[1644760517094,1.44554226,2942.5,2942.3,0.84971]
[1644760517296,0.65,2942.9,2942.3,0.84971]
[1644760517496,0.84963,2942.7,2942.3,0.84971]
[1644760521748,1.89731518,2942.7,2942.1,0.00338633]
[1644760522146,1.89731518,2942.7,2941.9,0.00338633]
[1644760522745,3.06791518,2942.7,2941.9,0.01367898]
[1644760522950,3.91772518,2942.7,2942.0,0.84982]
[1644760523151,3.91772518,2942.7,2942.1,0.00338633]
[1644760523748,1.06744578,2942.2,2942.1,0.00338633]
[1644760523949,1.06744578,2942.2,2942.1,0.8498]
[1644760526503,1.06744578,2942.2,2942.0,0.84984]
[1644760527302,1.44575848,2942.1,2942.0,0.84853365]
[1644760527702,1.44575848,2942.2,2942.0,0.84853365]
[1644760527905,1.44575848,2942.1,2942.0,0.84853365]
[1644760528103,1.44575848,2942.1,2942.0,0.85191936]
[1644760528641,0.84983,2942.3,2942.0,0.85191936]
[1644760528845,1.44572189,2942.2,2942.1,0.85316571]
[1644760529244,1.44572189,2942.2,2942.1,0.88271772]
[1644760531447,1.44572189,2942.2,2942.1,0.23271772]
[1644760533493,1.44572189,2942.2,2942.0,0.84983]
[1644760535092,1.44572189,2942.2,2942.1,0.02467716]
[1644760537945,1.44572189,2942.2,2942.1,0.87447716]
[1644760538343,1.44572189,2942.2,2942.1,0.02467716]
[1644760538953,1.44572189,2942.2,2941.1,0.25]
[1644760538954,0.04935431,2942.0,2941.1,0.25]
[1644760539149,1.44572189,2941.9,2940.9,1.0]
[1644760539349,0.93276865,2941.5,2941.0,0.3]
[1644760539596,0.93276865,2941.5,2941.1,0.00338633]
[1644760539797,0.93276865,2941.5,2940.8,0.00338633]
[1644760540415,0.93276865,2941.5,2941.0,0.01029369]
[1644760540598,1.78275865,2941.5,2941.3,0.85002]
[1644760540798,1.78275865,2941.5,2941.3,0.85340633]
[1644760541402,1.44609443,2941.4,2941.3,0.00338633]
[1644760541605,2.29618443,2941.4,2941.3,0.01029325]
[1644760541806,1.44609443,2941.4,2941.3,0.01029325]
[1644760542601,1.44609443,2941.4,2940.5,0.4198]
[1644760542802,0.8501,2941.2,2940.5,0.4198]
[1644760543002,0.8501,2941.2,2940.5,0.1698]
[1644760543445,0.8501,2941.2,2940.7,1.70018]
[1644760543943,0.8501,2941.2,2940.8,0.01029409]
[1644760544341,0.8501,2941.2,2940.9,0.85012]
[1644760545241,0.8501,2941.2,2940.9,0.86041391]
[1644760546244,0.8501,2941.2,2940.9,0.85012]
[1644760546445,0.8501,2941.2,2940.9,0.86041391]
[1644760546650,0.8501,2941.2,2941.0,0.00337905]
[1644760546849,0.8501,2941.2,2941.0,0.85348905]
[1644760547089,0.8501,2941.2,2941.0,0.85011]
[1644760547692,0.8501,2941.2,2941.0,0.86040384]
[1644760548496,0.8501,2941.2,2941.0,0.85011]
[1644760548693,1.18895082,2941.4,2941.0,0.85011]
[1644760548895,0.02685082,2941.4,2941.0,0.86040384]
[1644760549094,0.02685082,2941.4,2941.1,0.00337905]
[1644760549298,1.07096862,2941.5,2941.1,0.85346905]
[1644760549496,1.44616983,2941.4,2941.2,0.00337905]
[1644760549794,1.44616983,2941.4,2941.0,0.00337905]
[1644760549995,2.29625983,2941.4,2941.2,0.01029349]
[1644760550194,0.85009,2941.4,2941.2,0.01029349]
[1644760551047,0.85009,2941.4,2940.8,0.00337905]
[1644760551250,0.85009,2941.4,2941.2,0.01029348]
[1644760551749,0.85009,2941.4,2941.2,0.01367253]
[1644760552150,0.85009,2941.4,2941.2,0.00337905]
[1644760552549,0.85009,2941.4,2941.2,0.01367253]
[1644760553351,0.85009,2941.4,2941.2,0.00337905]
[1644760553756,0.85009,2941.4,2941.2,0.01367253]
[1644760554603,0.01298887,2941.3,2941.2,0.00337905]
[1644760554800,0.01298887,2941.3,2941.2,0.01029348]
[1644760555803,0.01298887,2941.3,2941.1,0.00337905]
[1644760556006,0.01298887,2941.3,2941.1,0.01029357]
[1644760556608,0.01298887,2941.3,2941.1,0.86040357]
[1644760557008,0.01298887,2941.3,2941.1,0.85011]
[1644760557212,0.01298887,2941.3,2941.1,0.86040366]
[1644760558210,0.01298887,2941.3,2941.1,0.85011]
[1644760558445,0.01298887,2941.3,2941.1,0.86040366]
[1644760559345,0.01298887,2941.3,2941.1,0.85011]
[1644760559547,0.01298887,2941.3,2941.1,0.86040367]
[1644760560555,0.01298887,2941.3,2941.1,0.85011]
[1644760560953,0.01298887,2941.3,2941.1,0.86040367]
[1644760561753,0.01298887,2941.3,2941.1,0.85011]
[1644760561954,0.01298887,2941.3,2941.1,0.86040367]